fUST/lending_fUST_20240601
["ID","MTS","AMOUNT","RATE_DAILY","PERIOD"]
[328357980,1717230647372,-500.0,0.00021917,2]
[328357981,1717230647382,-500.0,0.00021917,2]
[328357982,1717230647391,-536.1,0.00021917,2]
[328357983,1717230647402,-1517.08,0.00021917,2]
[328357984,1717230647414,-500.0,0.00021917,2]
[328357985,1717230647423,-500.0,0.00021917,2]
[328357986,1717230647432,-500.0,0.00021917,2]
[328357987,1717230647443,-500.0,0.00021917,2]
[328357988,1717230647452,-1338.05,0.00021917,2]
[328357989,1717230647461,-500.0,0.00021917,2]
[328357990,1717230647470,-500.0,0.00021917,2]
[328357991,1717230647480,-662.18,0.00021917,2]
[328357992,1717230647489,-500.0,0.00021917,2]
[328357993,1717230647499,-500.0,0.00021917,2]
[328357994,1717230647508,-500.0,0.00021917,2]
[328357995,1717230647517,-634.34,0.00021917,2]
[328357996,1717230647527,-500.0,0.00021917,2]
[328357997,1717230647536,-500.0,0.00021917,2]
[328357998,1717230647545,-781.21,0.00021917,2]
[328357999,1717230647555,-500.0,0.00021917,2]
[328358000,1717230647564,-500.0,0.00021917,2]
[328358001,1717230647574,-765.1,0.00021917,2]
[328358002,1717230647584,-380.8424805,0.00021917,2]
[328358003,1717230647593,-500.0,0.00021917,2]
[328358004,1717230647604,-968.19,0.00021917,2]
[328358005,1717230647613,-500.0,0.00021917,2]
[328358006,1717230647622,-2302.51,0.00021917,2]
[328358007,1717230647632,-662.66,0.00021917,2]
[328358008,1717230647641,-882.36,0.00021917,2]
[328358009,1717230647650,-500.0,0.00021917,2]
[328358010,1717230647659,-500.0,0.00021917,2]
[328358011,1717230647668,-670.37,0.00021917,2]
[328358012,1717230647678,-500.0,0.00021917,2]
[328358013,1717230647688,-500.0,0.00021917,2]
[328358014,1717230647697,-500.0,0.00021917,2]
[328358015,1717230647707,-500.0,0.00021917,2]
[328358016,1717230647717,-500.0,0.00021917,2]
[328358017,1717230647726,-500.0,0.00021917,2]
[328358018,1717230647736,-1103.16,0.00021917,2]
[328358019,1717230647745,-263.38279804,0.00021917,2]
[328358020,1717230647820,-236.61720196,0.00021917,2]
[328358021,1717230647830,-500.0,0.00021917,2]
[328358022,1717230647839,-500.0,0.00021917,2]
[328358023,1717230647848,-662.81,0.00021917,2]
[328358024,1717230647858,-500.0,0.00021917,2]
[328358025,1717230647867,-730.5,0.00021917,2]
[328358026,1717230647876,-500.0,0.00021917,2]
[328358027,1717230647886,-509.63546664,0.00021917,2]
[328358028,1717230647895,-629.85129178,0.00021917,2]
[328358029,1717230647905,-500.0,0.00021917,2]
[328358030,1717230647915,-632.68198816,0.00021917,2]
[328358031,1717230647924,-500.0,0.00021917,2]
[328358032,1717230647936,-1322.22,0.00021917,2]
[328358033,1717230647946,-500.0,0.00021917,2]
[328358034,1717230647956,-627.73,0.00021917,2]
[328358035,1717230647967,-601.95,0.00021917,2]
[328358036,1717230647975,-597.40328254,0.00021917,2]
[328358037,1717230647984,-162.87164228,0.00021917,2]
[328358038,1717230647993,-813.49,0.00021917,2]
[328358039,1717230648002,-500.0,0.00021917,2]
[328358040,1717230648011,-662.75,0.00021917,2]
[328358041,1717230648020,-664.34,0.00021917,2]
[328358042,1717230648029,-500.0,0.00021917,2]
[328358043,1717230648038,-500.0,0.00021917,2]
[328358044,1717230648047,-500.0,0.00021917,2]
[328358045,1717230648057,-500.0,0.00021917,2]
[328358046,1717230648066,-1858.15,0.00021917,2]
[328358047,1717230648075,-500.0,0.00021917,2]
[328358048,1717230648084,-500.0,0.00021917,2]
[328358049,1717230648093,-687.38,0.00021917,2]
[328358050,1717230648102,-500.0,0.00021917,2]
[328358051,1717230648112,-527.71655032,0.00021917,2]
[328358052,1717230648121,-500.0,0.00021917,2]
[328358053,1717230648130,-1266.75,0.00021917,2]
[328358054,1717230648140,-500.0,0.00021917,2]
[328358055,1717230648150,-500.0,0.00021917,2]
[328358056,1717230648159,-500.0,0.00021917,2]
[328358057,1717230648170,-500.0,0.00021917,2]
[328358058,1717230648180,-500.0,0.00021917,2]
[328358059,1717230648189,-500.0,0.00021917,2]
[328358060,1717230648199,-546.73,0.00021917,2]
[328358061,1717230648209,-3817.31,0.00021917,2]
[328358062,1717230648218,-500.0,0.00021917,2]
[328358063,1717230648227,-500.0,0.00021917,2]
[328358064,1717230648237,-500.0,0.00021917,2]
[328358065,1717230648246,-1235.48,0.00021917,2]
[328358066,1717230648255,-1621.88,0.00021917,2]
[328358067,1717230648264,-646.42,0.00021917,2]
[328358068,1717230648273,-423.67390916,0.00021917,2]
[328358069,1717230648654,-9411.65266598,0.00021689,2]
[328358070,1717230648664,-4366.17077922,0.00021689,2]
[328358071,1717230648673,-76.32609084,0.00021917,2]
[328358072,1717230648683,-968.62,0.00021917,2]
[328358073,1717230648692,-572.27,0.00021917,2]
[328358074,1717230648701,-517.34057799,0.00021917,2]
[328358075,1717230648711,-500.0,0.00021917,2]
[328358076,1717230648720,-500.0,0.00021917,2]
[328358077,1717230648729,-723.15,0.00021917,2]
[328358078,1717230648738,-500.0,0.00021917,2]
[328358079,1717230648748,-1893.82,0.00021917,2]
[328358080,1717230648757,-775.65,0.00021917,2]
[328358081,1717230648767,-500.0,0.00021917,2]
[328358082,1717230648777,-1264.81,0.00021917,2]
[328358083,1717230648786,-500.0,0.00021917,2]
[328358084,1717230648795,-708.67,0.00021917,2]
[328358085,1717230648804,-166.34389154,0.00021917,2]
[328358086,1717230648814,-500.0,0.00021917,2]
[328358087,1717230648824,-500.0,0.00021917,2]
[328358088,1717230648919,-500.0,0.00021917,2]
[328358089,1717230648928,-160.80911601,0.00021917,2]
[328358090,1717230668756,166.666666,0.00013699,2]
[328358092,1717230723023,302.85946868,9.999e-05,2]
[328358094,1717230729030,1675.27233804,9.999e-05,2]
[328358101,1717230968705,413204.47224789,0.00030991,120]
[328358105,1717231214686,166.666666,0.00013699,2]
[328358120,1717231724812,273.37336231,9.9e-05,2]
[328358122,1717231737470,166.666666,0.00013699,2]
[328358165,1717231833032,-169.432516,0.00020336,2]
[328358167,1717231833042,-306.71145817,0.00020388,2]
[328358169,1717231833053,-462.228,0.00020388,2]
[328358204,1717231838798,-1000.44654106,0.00020388,2]
[328358205,1717231838811,-7642.26666675,0.00020388,2]
[328358206,1717231838820,-3789.763292,0.00020389,2]
[328358207,1717231839255,-280.86267126,0.00020389,2]
[328358218,1717231841607,-5177.14035354,0.00020389,2]
[328358219,1717231841617,-2124.20624592,0.000205,2]
[328358224,1717231843392,-674.10124042,0.000205,2]
[328358234,1717231846356,-586.74021023,0.000205,2]
[328358235,1717231886220,231.23903739,9.999e-05,2]
[328358236,1717231916938,155.0,9.999e-05,2]
[328358240,1717232305751,166.666666,0.00013699,2]
[328358243,1717232530750,1000.0,0.00027,30]
[328358244,1717232549363,1000.0,0.00027,30]
[328358247,1717232562816,390.0,0.00027,30]
[328358249,1717232846772,166.666666,0.00013699,2]
[328358265,1717232931030,155.0,9.999e-05,2]
[328358319,1717232980556,500.0,9.999e-05,2]
[328358428,1717233039385,-281.2955785,0.00014885,2]
[328358429,1717233039395,-967.73520979,0.00014983,2]
[328358430,1717233039407,-8443.91745619,0.00014983,2]
[328358431,1717233039416,-281.29557843,0.00016601,2]
[328358432,1717233039426,-1688.15201223,0.00017897,2]
[328358433,1717233039435,-10473.1254341,0.00017898,2]
[328358434,1717233039444,-897.38565272,0.00018,2]
[328358435,1717233039454,-281.29557843,0.00018318,2]
[328358436,1717233039463,-163.96667751,0.00018973,2]
[328358437,1717233039473,-28312.0,0.00019,2]
[328358438,1717233039484,-281.29557843,0.00020034,2]
[328358439,1717233039494,-162.84879519,0.0002049,2]
[328358440,1717233039503,-226.71767339,0.0002049,2]
[328358441,1717233039516,-500.0,0.0002049,2]
[328358442,1717233039525,-500.0,0.0002049,2]
[328358443,1717233039534,-403.47119102,0.0002049,2]
[328358444,1717233039543,-668.96703791,0.0002049,2]
[328358445,1717233039553,-500.0,0.0002049,2]
[328358446,1717233039562,-188.60965485,0.0002049,2]
[328358447,1717233039571,-668.96703791,0.0002049,2]
[328358448,1717233039581,-668.96703791,0.0002049,2]
[328358449,1717233039590,-384.06362986,0.0002049,2]
[328358450,1717233039600,-668.96703791,0.0002049,2]
[328358451,1717233039609,-668.96703791,0.0002049,2]
[328358452,1717233039618,-668.96703791,0.0002049,2]
[328358453,1717233039627,-668.96703791,0.0002049,2]
[328358454,1717233039636,-668.96703791,0.0002049,2]
[328358455,1717233039645,-668.96703791,0.0002049,2]
[328358456,1717233039654,-668.96703791,0.0002049,2]
[328358457,1717233039663,-668.96703791,0.0002049,2]
[328358458,1717233039672,-668.96703791,0.0002049,2]
[328358459,1717233039682,-668.96703791,0.0002049,2]
[328358460,1717233039691,-668.96703791,0.0002049,2]
[328358461,1717233039701,-668.96703791,0.0002049,2]
[328358462,1717233039710,-668.96703791,0.0002049,2]
[328358463,1717233039719,-668.96703791,0.0002049,2]
[328358464,1717233039729,-668.96703791,0.0002049,2]
[328358465,1717233039738,-668.96703791,0.0002049,2]
[328358466,1717233039748,-668.96703791,0.0002049,2]
[328358467,1717233039757,-668.96703791,0.0002049,2]
[328358468,1717233039766,-668.96703791,0.0002049,2]
[328358469,1717233039775,-668.96703791,0.0002049,2]
[328358470,1717233039784,-668.96703791,0.0002049,2]
[328358471,1717233039794,-668.96703791,0.0002049,2]
[328358472,1717233039803,-668.96703791,0.0002049,2]
[328358473,1717233039813,-668.96703791,0.0002049,2]
[328358474,1717233039822,-668.96703791,0.0002049,2]
[328358475,1717233039831,-668.96703791,0.0002049,2]
[328358476,1717233039840,-668.96703791,0.0002049,2]
[328358477,1717233039850,-668.96703791,0.0002049,2]
[328358478,1717233039859,-668.96703791,0.0002049,2]
[328358479,1717233039867,-668.96703791,0.0002049,2]
[328358480,1717233039877,-550.9904196,0.00020498,2]
[328358481,1717233039886,-294.87976936,0.00020498,2]
[328358482,1717233039895,-249.52872075,0.00020498,2]
[328358483,1717233039905,-274.85373023,0.00020498,2]
[328358484,1717233039914,-155.04478637,0.00020498,2]
[328358485,1717233039924,-281.31656163,0.00020498,2]
[328358486,1717233039933,-155.04341216,0.00020498,2]
[328358487,1717233039942,-358.38050345,0.00020498,2]
[328358488,1717233039951,-530.40024424,0.00020498,2]
[328358489,1717233039961,-194.50840846,0.00020498,2]
[328358490,1717233039970,-184.42856408,0.00020499,2]
[328358491,1717233039980,-84667.47749928,0.000205,2]
[328358492,1717233039989,-151.0,0.000205,2]
[328358493,1717233039999,-151.0,0.000205,2]
[328358494,1717233040008,-155.13331,0.000205,2]
[328358495,1717233040017,-151.0,0.000205,2]
[328358496,1717233040027,-151.0,0.000205,2]
[328358497,1717233040036,-151.0,0.000205,2]
[328358498,1717233040045,-392.53174974,0.0002068,2]
[328358499,1717233040054,-267.80385316,0.00021,2]
[328358500,1717233040063,-1000.0,0.00021,10]
[328358501,1717233040073,-2000.0,0.00021815,2]
[328358502,1717233040083,-6906.12707884,0.00021817,7]
[328358503,1717233040092,-10066.12196497,0.00021817,2]
[328358504,1717233040101,-163.96667751,0.00021817,2]
[328358505,1717233040110,-282.0,0.000219,2]
[328358506,1717233040120,-151.0,0.000219,2]
[328358507,1717233040132,-565.0,0.000219,2]
[328358508,1717233040141,-565.0,0.000219,2]
[328358509,1717233040151,-2048.78105248,0.00021915,2]
[328358510,1717233040160,-450.58549799,0.00021915,2]
[328358511,1717233040169,-169.96760282,0.00021915,2]
[328358512,1717233040179,-523.11398542,0.00021915,2]
[328358513,1717233040188,-155.26685736,0.00021915,2]
[328358514,1717233040197,-155.18307391,0.00021915,2]
[328358515,1717233040208,-713.3459449,0.00021915,2]
[328358516,1717233040218,-214.05723073,0.00021915,2]
[328358517,1717233040228,-859.7179351,0.00021915,2]
[328358518,1717233040238,-760.94478308,0.00021915,2]
[328358519,1717233040248,-690.60091878,0.00021915,2]
[328358520,1717233040258,-283.86669786,0.00021915,2]
[328358521,1717233040267,-736.57766196,0.00021915,2]
[328358522,1717233040276,-2968.07044408,0.00021915,2]
[328358523,1717233040286,-309.88859792,0.00021915,2]
[328358524,1717233040295,-309.37619068,0.00021915,2]
[328358525,1717233040304,-350.33130404,0.00021915,2]
[328358526,1717233040314,-298.55749092,0.00021915,2]
[328358527,1717233040323,-2275.71358268,0.00021915,2]
[328358528,1717233040332,-10787.62798766,0.00021915,2]
[328358529,1717233040342,-1899.84369747,0.00021915,2]
[328358530,1717233040352,-207.12813251,0.00021915,2]
[328358531,1717233040361,-261.96069104,0.00021915,2]
[328358532,1717233040370,-316.52805142,0.00021915,2]
[328358533,1717233040379,-1407.24401404,0.00021915,2]
[328358534,1717233040389,-155.69541623,0.00021915,2]
[328358535,1717233040398,-302.0,0.00021915,2]
[328358536,1717233040408,-75145.90041551,0.00021915,2]
[328358559,1717233042028,-6016.00571347,0.00014982,2]
[328358820,1717234238681,-553.7338365,0.00019815,2]
[328358821,1717234238696,-50.13413166,0.00019815,2]
[328358822,1717234238706,-160.74033054,0.00021716,2]
[328358823,1717234238715,-4059.1488378,0.00021812,2]
[328358844,1717234265414,150.0,0.00027,30]
[328358845,1717234331334,7720.89664276,9.999e-05,2]
[328358846,1717234380155,5293.04377038,0.00027,30]
[328358848,1717234668120,155.774269,0.00027,30]
[328358849,1717234749761,175.879244,0.0002101,14]
[328358853,1717234961661,-4742.104661,0.00030946,30]
[328358854,1717234961687,-3878.76132123,0.00030946,30]
[328358855,1717234961713,-29004.17325366,0.00030946,30]
[328358856,1717234961737,-8831.29824833,0.00030946,30]
[328358857,1717234961762,-162.72298389,0.00030946,30]
[328358858,1717234961785,-9655.02354931,0.00030946,30]
[328358859,1717234961808,-500000.0,0.00030946,30]
[328358860,1717234961830,-507.87776205,0.00030946,30]
[328358861,1717234961860,-1165.83823821,0.00030946,30]
[328358862,1717234961883,-982.55809098,0.00030946,30]
[328358863,1717234961906,-415.65359515,0.00030946,30]
[328358864,1717234961933,-228.69756805,0.00030946,30]
[328358865,1717234961955,-1696.11452902,0.00030946,30]
[328358866,1717234961978,-64597.97536513,0.00030946,30]
[328358867,1717234962000,-167723.82646957,0.00030946,30]
[328358868,1717234962022,-5652.31185556,0.00030946,30]
[328358869,1717234962044,-160.0,0.00030946,30]
[328358870,1717234962070,-2200595.06250886,0.00030946,120]
[328358871,1717234973727,-3000000.0,0.00030946,120]
[328358872,1717235014598,-2759943.68547691,0.00030946,120]
[328358875,1717235165918,175.879244,0.0002101,14]
[328359021,1717235432113,-897.38565272,0.00018927,2]
[328359023,1717235432122,-692.44546123,0.00018927,2]
[328359036,1717235432244,-9780.67997287,0.00018927,2]
[328359038,1717235432254,-9411.65266598,0.00018928,2]
[328359050,1717235432373,-42045.61257886,0.00018929,2]
[328359052,1717235432386,-2557.9422314,0.00018942,2]
[328359054,1717235432395,-30000.0,0.00019,2]
[328359055,1717235432404,-165.67202407,0.00019078,2]
[328359057,1717235432414,-438.5820313,0.00019178,4]
[328359058,1717235432423,-4230.52290454,0.00019787,2]
[328359060,1717235432433,-24900.0,0.00019788,2]
[328359061,1717235432442,-6262.763198,0.00020518,2]
[328359062,1717235432451,-923.61703461,0.00020619,2]
[328359063,1717235432460,-922.4720001,0.00020819,2]
[328359064,1717235432469,-228.08668634,0.00021,2]
[328359065,1717235432478,-3453.06353942,0.00021008,7]
[328359066,1717235432487,-15903.91218111,0.00021008,2]
[328359084,1717235437926,-442.46701323,0.00019785,2]
[328359109,1717235441631,-18.42087649,0.00019785,2]
[328359111,1717235441640,-507.313982,0.00019785,2]
[328359112,1717235441650,-505.320205,0.00019785,2]
[328359113,1717235441659,-500.0,0.00019785,2]
[328359114,1717235441669,-500.0,0.00019785,2]
[328359115,1717235441678,-500.0,0.00019785,2]
[328359116,1717235441690,-657.99872896,0.00019785,2]
[328359117,1717235441699,-500.0,0.00019785,2]
[328359118,1717235441708,-500.0,0.00019785,2]
[328359119,1717235441717,-657.99872896,0.00019785,2]
[328359120,1717235441726,-500.0,0.00019785,2]
[328359121,1717235441737,-500.0,0.00019785,2]
[328359122,1717235441747,-399.40752937,0.00019785,2]
[328359123,1717235441756,-657.99872896,0.00019785,2]
[328359124,1717235441766,-500.0,0.00019785,2]
[328359125,1717235441775,-657.99872896,0.00019785,2]
[328359126,1717235441784,-398.07706113,0.00019785,2]
[328359127,1717235441794,-657.99872896,0.00019785,2]
[328359128,1717235441804,-500.0,0.00019785,2]
[328359129,1717235441814,-657.99872896,0.00019785,2]
[328359130,1717235441823,-500.0,0.00019785,2]
[328359131,1717235441833,-500.0,0.00019785,2]
[328359132,1717235441843,-657.99872896,0.00019785,2]
[328359133,1717235441852,-657.99872896,0.00019785,2]
[328359134,1717235441862,-657.99872896,0.00019785,2]
[328359135,1717235441873,-500.0,0.00019785,2]
[328359136,1717235441883,-657.99872896,0.00019785,2]
[328359137,1717235441894,-657.99872896,0.00019785,2]
[328359138,1717235441903,-657.99872896,0.00019785,2]
[328359139,1717235441913,-657.99872896,0.00019785,2]
[328359140,1717235441923,-657.99872896,0.00019785,2]
[328359141,1717235441932,-657.99872896,0.00019785,2]
[328359142,1717235441942,-657.99872896,0.00019785,2]
[328359143,1717235441952,-657.99872896,0.00019785,2]
[328359144,1717235442068,-657.99872896,0.00019785,2]
[328359145,1717235442081,-657.99872896,0.00019785,2]
[328359146,1717235442090,-657.99872896,0.00019785,2]
[328359147,1717235442100,-657.99872896,0.00019785,2]
[328359148,1717235442110,-657.99872896,0.00019785,2]
[328359149,1717235442120,-657.99872896,0.00019785,2]
[328359150,1717235442131,-657.99872896,0.00019785,2]
[328359151,1717235442142,-657.99872896,0.00019785,2]
[328359152,1717235442152,-657.99872896,0.00019785,2]
[328359153,1717235442162,-657.99872896,0.00019785,2]
[328359154,1717235442171,-657.99872896,0.00019785,2]
[328359155,1717235442182,-657.99872896,0.00019785,2]
[328359156,1717235442192,-657.99872896,0.00019785,2]
[328359157,1717235442201,-657.99872896,0.00019785,2]
[328359158,1717235442210,-657.99872896,0.00019785,2]
[328359159,1717235442220,-657.99872896,0.00019785,2]
[328359160,1717235442230,-657.99872896,0.00019785,2]
[328359161,1717235442241,-657.99872896,0.00019785,2]
[328359162,1717235442251,-657.99872896,0.00019785,2]
[328359163,1717235442261,-12461.34788938,0.00021008,2]
[328359164,1717235442270,-3281.29813613,0.0002101,2]
[328359180,1717235443201,-9552.69275302,0.0002101,2]
[328359181,1717235443211,-286.29967128,0.0002101,2]
[328359182,1717235443221,-3986.07672672,0.0002101,2]
[328359183,1717235443230,-461.66719004,0.0002101,2]
[328359184,1717235443240,-155.00155002,0.0002101,2]
[328359185,1717235443249,-3660.88309753,0.0002101,2]
[328359202,1717235552586,10000.0,0.00023288,29]
[328359203,1717235565140,990000.0,0.00023288,29]
[328359204,1717235569875,1000000.0,0.00023288,29]
[328359205,1717235574994,1000001.0,0.00023288,29]
[328359206,1717235725524,-160.0,0.00030805,30]
[328359209,1717235832044,30000.0,0.0003061,30]
[328359211,1717235935351,273.37336231,9.9e-05,2]
[328359215,1717236350290,273.37336231,9.9e-05,2]
[328359216,1717236450850,160.0,0.00030656,30]
[328359270,1717236632253,-805.22951312,0.00018044,2]
[328359271,1717236632265,-454.93399803,0.00018044,2]
[328359277,1717236638246,-4283.13003,0.00018044,2]
[328359278,1717236638258,-3868.35912483,0.00018044,2]
[328359279,1717236638267,-50228.80919675,0.00018045,2]
[328359280,1717236638276,-21790.21348502,0.00018047,2]
[328359343,1717236648324,-203.11728749,0.00017947,2]
[328359344,1717236648335,-2847.69286798,0.00018047,2]
[328359345,1717236648346,-189.734611,0.00018366,2]
[328359346,1717236648355,-169.432516,0.00019182,2]
[328359347,1717236648366,-217.77958663,0.00020766,2]
[328359348,1717236648378,-254.03417928,0.00021,2]
[328359349,1717236648387,-217.420278,0.00021006,2]
[328359350,1717236648398,-419.82225881,0.00021006,2]
[328359351,1717236648407,-216.56580214,0.00021006,2]
[328359352,1717236648417,-500.0,0.00021006,2]
[328359353,1717236648426,-500.0,0.00021006,2]
[328359354,1717236648435,-500.0,0.00021006,2]
[328359355,1717236648444,-500.0,0.00021006,2]
[328359356,1717236648454,-500.0,0.00021006,2]
[328359357,1717236648463,-469.42311834,0.00021006,2]
[328359358,1717236648472,-500.0,0.00021006,2]
[328359359,1717236648481,-500.0,0.00021006,2]
[328359360,1717236648491,-500.0,0.00021006,2]
[328359361,1717236648500,-500.0,0.00021006,2]
[328359362,1717236648509,-500.0,0.00021006,2]
[328359363,1717236648518,-500.0,0.00021006,2]
[328359364,1717236648640,-478.3430576,0.00021006,2]
[328359365,1717236648649,-500.0,0.00021006,2]
[328359366,1717236648658,-500.0,0.00021006,2]
[328359367,1717236648668,-500.0,0.00021006,2]
[328359368,1717236648677,-500.0,0.00021006,2]
[328359369,1717236648685,-500.0,0.00021006,2]
[328359370,1717236648695,-500.0,0.00021006,2]
[328359371,1717236648704,-500.0,0.00021006,2]
[328359372,1717236648713,-500.0,0.00021006,2]
[328359373,1717236648721,-500.0,0.00021006,2]
[328359374,1717236648730,-500.0,0.00021006,2]
[328359375,1717236648739,-500.0,0.00021006,2]
[328359376,1717236648748,-500.0,0.00021006,2]
[328359377,1717236648758,-500.0,0.00021006,2]
[328359378,1717236648772,-500.0,0.00021006,2]
[328359379,1717236648782,-500.0,0.00021006,2]
[328359380,1717236648790,-500.0,0.00021006,2]
[328359381,1717236648800,-500.0,0.00021006,2]
[328359382,1717236648811,-500.0,0.00021006,2]
[328359383,1717236648820,-500.0,0.00021006,2]
[328359384,1717236648829,-500.0,0.00021006,2]
[328359385,1717236648839,-500.0,0.00021006,2]
[328359386,1717236648850,-500.0,0.00021006,2]
[328359387,1717236648859,-500.0,0.00021006,2]
[328359388,1717236648869,-500.0,0.00021006,2]
[328359389,1717236648878,-500.0,0.00021006,2]
[328359390,1717236648887,-500.0,0.00021006,2]
[328359391,1717236648896,-500.0,0.00021006,2]
[328359392,1717236648906,-500.0,0.00021006,2]
[328359393,1717236648915,-500.0,0.00021006,2]
[328359394,1717236648924,-500.0,0.00021006,2]
[328359395,1717236648934,-500.0,0.00021006,2]
[328359396,1717236648943,-500.0,0.00021006,2]
[328359397,1717236648952,-500.0,0.00021006,2]
[328359398,1717236648962,-200.0,0.00021006,2]
[328359399,1717236648971,-500.0,0.00021006,2]
[328359400,1717236648981,-500.0,0.00021006,2]
[328359401,1717236648990,-5067.41063904,0.00021008,2]
[328359402,1717236648999,-741.56797748,0.00021009,2]
[328359403,1717236649008,-15982.03419755,0.00021009,2]
[328359404,1717236985257,273.37336231,9.9e-05,2]
[328359405,1717236994854,239.66802659,9.9e-05,2]
[328359409,1717237347055,151.0,0.00030654,30]
[328359440,1717237832444,-331.8310696,0.0001932,2]
[328359442,1717237832453,-3877.93994895,0.00019482,2]
[328359444,1717237832465,-1819.4,0.00019482,2]
[328359462,1717237838380,-4388.7036797,0.00019482,2]
[328359463,1717237838392,-625.20235871,0.00019482,2]
[328359464,1717237838403,-13379.61602158,0.00019482,2]
[328359465,1717237838414,-7992.81647,0.00019482,2]
[328359483,1717237842832,-6299.9,0.00019482,2]
[328359485,1717237842849,-1402.45,0.00019482,2]
[328359492,1717237843882,-9411.65266598,0.00019481,2]
[328359493,1717237843894,-10442.78071781,0.00019482,2]
[328359494,1717237843904,-11131.83225949,0.00019484,2]
[328359495,1717237843917,-3561.33058698,0.00019484,2]
[328359496,1717237843929,-6066.00000008,0.00019484,2]
[328359522,1717237971285,155.0,9.999e-05,2]
[328359523,1717238003816,155.0,9.999e-05,2]
[328359524,1717238007851,179.29117579,9.999e-05,2]
[328359525,1717238013769,208.09103897,9.999e-05,2]
[328359526,1717238026133,529.51923279,9.999e-05,2]
[328359527,1717238041097,155.0,9.999e-05,2]
[328359531,1717238067750,273.37336231,9.9e-05,2]
[328359534,1717238076893,273.37336231,9.9e-05,2]
[328359535,1717238086294,273.37336231,9.9e-05,2]
[328359536,1717238094341,273.37336231,9.9e-05,2]
[328359537,1717238103050,188.89140307,9.9e-05,2]
[328359544,1717238142112,5887.0,0.00030654,30]
[328359550,1717238194537,219.152759,9.9e-05,2]
[328359558,1717238236926,970.34347265,0.00030654,30]
[328359560,1717238247340,151.0,0.00030654,30]
[328359566,1717238597705,936.0,0.00030706,120]
[328359567,1717238610338,155.0,9.999e-05,2]
[328359569,1717238657606,10678.67988996,0.00030706,30]
[328359570,1717238675315,155.0,9.999e-05,2]
[328359571,1717238701929,6969.00006969,0.00030706,30]
[328359572,1717238724115,9393.30309393,0.00030706,30]
[328359573,1717238749003,9090.3030909,0.00030706,30]
[328359576,1717238948137,8134.4242912,0.00030706,30]
[328359617,1717239032778,-545.87563572,0.00018345,2]
[328359619,1717239032789,-8865.77703026,0.00018345,2]
[328359621,1717239032801,-5273.3943443,0.00018346,2]
[328359623,1717239032811,-169.644612,0.00019178,2]
[328359625,1717239032820,-379.07648155,0.00019361,2]
[328359628,1717239032829,-296.53915524,0.0001937,2]
[328359629,1717239032839,-406.23457498,0.0001937,2]
[328359631,1717239032849,-33670.47497484,0.0001946,2]
[328359634,1717239032860,-848.37,0.0001946,2]
[328359636,1717239032872,-726.27965151,0.0001946,2]
[328359777,1717239040493,-8672.95239,0.0001946,2]
[328359782,1717239042507,-7693.0353284,0.0001946,2]
[328359791,1717239045130,-28388.88765525,0.0001946,2]
[328359792,1717239045143,-528.0,0.00019461,3]
[328359793,1717239045155,-500.0,0.00019469,2]
[328359794,1717239045165,-500.0,0.00019469,2]
[328359795,1717239045176,-500.0,0.00019469,2]
[328359796,1717239045186,-500.0,0.00019469,2]
[328359797,1717239045195,-444.7685353,0.00019469,2]
[328359798,1717239045207,-500.0,0.00019469,2]
[328359799,1717239045217,-500.0,0.00019469,2]
[328359800,1717239045226,-500.0,0.00019469,2]
[328359801,1717239045236,-500.0,0.00019469,2]
[328359803,1717239045247,-639.45078071,0.00019469,2]
[328359806,1717239045259,-500.0,0.00019469,2]
[328359808,1717239045270,-500.0,0.00019469,2]
[328359810,1717239045283,-500.0,0.00019469,2]
[328359812,1717239045292,-484.94574232,0.00019469,2]